fUSD/lending_fUSD_20260520
["ID","MTS","AMOUNT","RATE_DAILY","PERIOD"]
[422653410,1779210640000,-500.0,0.00013698,2]
[422653411,1779210640000,-500.0,0.00013698,2]
[422653445,1779210640000,-625.64,0.00013698,2]
[422653500,1779210640000,-541.66,0.00013742,2]
[422653442,1779210640000,-625.64,0.00013698,2]
[422653478,1779210640000,-1355.23,0.00013698,2]
[422653477,1779210640000,-1355.23,0.00013698,2]
[422653480,1779210640000,-1355.23,0.00013698,2]
[422653489,1779210640000,-500.0,0.00013698,2]
[422653481,1779210640000,-1355.23,0.00013698,2]
[422653482,1779210640000,-500.0,0.00013698,2]
[422653483,1779210640000,-500.0,0.00013698,2]
[422653485,1779210640000,-500.0,0.00013698,2]
[422653486,1779210640000,-500.0,0.00013698,2]
[422653487,1779210640000,-500.0,0.00013698,2]
[422653484,1779210640000,-500.0,0.00013698,2]
[422653490,1779210640000,-399.8127821,0.00013698,2]
[422653491,1779210640000,-289.31,0.00013699,2]
[422653492,1779210640000,-200.0,0.00013699,2]
[422653493,1779210640000,-546.34,0.00013699,2]
[422653494,1779210640000,-166.66,0.00013699,2]
[422653496,1779210640000,-404.08232307,0.00013699,2]
[422653495,1779210640000,-7264.1,0.00013699,2]
[422653498,1779210640000,-150.0,0.00013737,2]
[422653497,1779210640000,-651.58,0.000137,2]
[422653499,1779210640000,-500.0,0.00013742,2]
[422653501,1779210640000,-625.64,0.00013742,2]
[422653502,1779210640000,-1355.23,0.00013742,2]
[422653505,1779210640000,-150.0,0.00013746,2]
[422653503,1779210640000,-8247.791,0.00013743,2]
[422653451,1779210640000,-625.64,0.00013698,2]
[422653507,1779210640000,-150.0,0.0001376,2]
[422653479,1779210640000,-1355.23,0.00013698,2]
[422653476,1779210640000,-1355.23,0.00013698,2]
[422653488,1779210640000,-500.0,0.00013698,2]
[422653474,1779210640000,-1355.23,0.00013698,2]
[422653448,1779210640000,-625.64,0.00013698,2]
[422653473,1779210640000,-1355.23,0.00013698,2]
[422653444,1779210640000,-625.64,0.00013698,2]
[422653446,1779210640000,-625.64,0.00013698,2]
[422653450,1779210640000,-625.64,0.00013698,2]
[422653447,1779210640000,-625.64,0.00013698,2]
[422653453,1779210640000,-625.64,0.00013698,2]
[422653452,1779210640000,-625.64,0.00013698,2]
[422653449,1779210640000,-625.64,0.00013698,2]
[422653454,1779210640000,-625.64,0.00013698,2]
[422653456,1779210640000,-625.64,0.00013698,2]
[422653460,1779210640000,-500.0,0.00013698,2]
[422653461,1779210640000,-500.0,0.00013698,2]
[422653457,1779210640000,-625.64,0.00013698,2]
[422653455,1779210640000,-625.64,0.00013698,2]
[422653459,1779210640000,-500.0,0.00013698,2]
[422653472,1779210640000,-1355.23,0.00013698,2]
[422653462,1779210640000,-500.0,0.00013698,2]
[422653475,1779210640000,-1355.23,0.00013698,2]
[422653471,1779210640000,-1355.23,0.00013698,2]
[422653470,1779210640000,-1355.23,0.00013698,2]
[422653468,1779210640000,-1355.23,0.00013698,2]
[422653469,1779210640000,-1355.23,0.00013698,2]
[422653466,1779210640000,-1355.23,0.00013698,2]
[422653464,1779210640000,-1355.23,0.00013698,2]
[422653465,1779210640000,-1355.23,0.00013698,2]
[422653463,1779210640000,-580.58046492,0.00013698,2]
[422653458,1779210640000,-625.64,0.00013698,2]
[422653467,1779210640000,-1355.23,0.00013698,2]
[422653543,1779210641000,-150.0,0.00014056,2]
[422653551,1779210641000,-500.0,0.00014148,2]
[422653550,1779210641000,-736.0,0.00014123,2]
[422653549,1779210641000,-1297.76263998,0.00014113,2]
[422653552,1779210641000,-150.0,0.00014159,2]
[422653548,1779210641000,-166.66,0.0001411,2]
[422653547,1779210641000,-150.0,0.00014108,2]
[422653545,1779210641000,-250.0,0.00014088,2]
[422653544,1779210641000,-730.84303976,0.00014057,2]
[422653542,1779210641000,-150.0,0.00014033,2]
[422653539,1779210641000,-530.30207749,0.00014,2]
[422653546,1779210641000,-6533.128208,0.00014107,2]
[422653554,1779210641000,-150.0,0.00014211,2]
[422653564,1779210641000,-500.0,0.00014257,2]
[422653556,1779210641000,-150.0,0.00014237,2]
[422653555,1779210641000,-150.0,0.00014237,2]
[422653557,1779210641000,-166.66,0.00014247,2]
[422653559,1779210641000,-1165.5549093,0.00014249,2]
[422653560,1779210641000,-800.61098678,0.00014257,2]
[422653558,1779210641000,-291.68040773,0.00014249,2]
[422653565,1779210641000,-500.0,0.00014257,2]
[422653566,1779210641000,-500.0,0.00014257,2]
[422653561,1779210641000,-800.6,0.00014257,2]
[422653562,1779210641000,-500.0,0.00014257,2]
[422653567,1779210641000,-500.0,0.00014257,2]
[422653568,1779210641000,-539.56685334,0.00014257,2]
[422653540,1779210641000,-150.0,0.00014004,2]
[422653553,1779210641000,-150.0,0.00014169,2]
[422653541,1779210641000,-1254.07364838,0.00014027,2]
[422653510,1779210641000,-2000.0,0.00013829,2]
[422653534,1779210641000,-150.0,0.00013986,2]
[422653563,1779210641000,-500.0,0.00014257,2]
[422653508,1779210641000,-150.0,0.00013798,2]
[422653511,1779210641000,-166.66,0.00013836,2]
[422653512,1779210641000,-6533.128208,0.00013843,2]
[422653516,1779210641000,-1000.0,0.00013884,2]
[422653515,1779210641000,-500.0,0.00013874,2]
[422653509,1779210641000,-2351.0,0.00013798,2]
[422653514,1779210641000,-150.0,0.00013862,2]
[422653513,1779210641000,-150.0,0.00013849,2]
[422653518,1779210641000,-500.0,0.00013889,2]
[422653517,1779210641000,-500.0,0.00013889,2]
[422653519,1779210641000,-500.0,0.00013889,2]
[422653521,1779210641000,-500.0,0.00013889,2]
[422653520,1779210641000,-500.0,0.00013889,2]
[422653522,1779210641000,-500.0,0.00013889,2]
[422653523,1779210641000,-509.12282674,0.00013889,2]
[422653525,1779210641000,-500.0,0.00013889,2]
[422653528,1779210641000,-150.0,0.00013896,2]
[422653526,1779210641000,-500.0,0.00013889,2]
[422653527,1779210641000,-195.76615637,0.00013889,2]
[422653524,1779210641000,-500.0,0.00013889,2]
[422653530,1779210641000,-500.0,0.00013918,2]
[422653531,1779210641000,-150.0,0.00013953,2]
[422653529,1779210641000,-150.0,0.00013901,2]
[422653533,1779210641000,-162.87295535,0.00013975,2]
[422653532,1779210641000,-166.66,0.00013973,2]
[422653535,1779210641000,-150.0,0.00013987,2]
[422653537,1779210641000,-150.0,0.00013987,2]
[422653536,1779210641000,-150.0,0.00013987,2]
[422653538,1779210641000,-250.0,0.00014,2]
[422653569,1779210641000,-150.0,0.00014257,2]
[422653584,1779210641000,-500.0,0.00014257,2]
[422653577,1779210641000,-500.0,0.00014257,2]
[422653607,1779210641000,-500.0,0.00014257,2]
[422653608,1779210641000,-390.26077903,0.00014257,2]
[422653606,1779210641000,-500.0,0.00014257,2]
[422653610,1779210641000,-500.0,0.00014257,2]
[422653609,1779210641000,-500.0,0.00014257,2]
[422653611,1779210641000,-500.0,0.00014257,2]
[422653612,1779210641000,-500.0,0.00014257,2]
[422653614,1779210641000,-500.0,0.00014257,2]
[422653615,1779210641000,-500.0,0.00014257,2]
[422653618,1779210641000,-500.0,0.00014257,2]
[422653613,1779210641000,-500.0,0.00014257,2]
[422653617,1779210641000,-275.76317604,0.00014257,2]
[422653616,1779210641000,-500.0,0.00014257,2]
[422653602,1779210641000,-500.0,0.00014257,2]
[422653620,1779210641000,-533.22569157,0.00014257,2]
[422653622,1779210641000,-150.0,0.00014257,2]
[422653621,1779210641000,-275.90692005,0.00014257,2]
[422653626,1779210641000,-500.0,0.00014257,2]
[422653623,1779210641000,-150.0,0.00014257,2]
[422653625,1779210641000,-200.0,0.00014257,2]
[422653624,1779210641000,-500.0,0.00014257,2]
[422653628,1779210641000,-500.0,0.00014257,2]
[422653627,1779210641000,-150.0,0.00014257,2]
[422653631,1779210641000,-500.0,0.00014257,2]
[422653630,1779210641000,-351.0706614,0.00014257,2]
[422653629,1779210641000,-500.0,0.00014257,2]
[422653633,1779210641000,-500.0,0.00014257,2]
[422653570,1779210641000,-150.0,0.00014257,2]
[422653619,1779210641000,-500.0,0.00014257,2]
[422653604,1779210641000,-500.0,0.00014257,2]
[422653632,1779210641000,-500.0,0.00014257,2]
[422653603,1779210641000,-500.0,0.00014257,2]
[422653573,1779210641000,-185.87830768,0.00014257,2]
[422653578,1779210641000,-500.0,0.00014257,2]
[422653579,1779210641000,-413.19836164,0.00014257,2]
[422653580,1779210641000,-500.0,0.00014257,2]
[422653576,1779210641000,-500.0,0.00014257,2]
[422653572,1779210641000,-150.0,0.00014257,2]
[422653571,1779210641000,-256.32821497,0.00014257,2]
[422653574,1779210641000,-500.0,0.00014257,2]
[422653605,1779210641000,-500.0,0.00014257,2]
[422653581,1779210641000,-500.0,0.00014257,2]
[422653582,1779210641000,-500.0,0.00014257,2]
[422653583,1779210641000,-500.0,0.00014257,2]
[422653587,1779210641000,-500.0,0.00014257,2]
[422653588,1779210641000,-500.0,0.00014257,2]
[422653575,1779210641000,-500.0,0.00014257,2]
[422653586,1779210641000,-500.0,0.00014257,2]
[422653585,1779210641000,-317.74373799,0.00014257,2]
[422653598,1779210641000,-500.0,0.00014257,2]
[422653600,1779210641000,-349.07736479,0.00014257,2]
[422653599,1779210641000,-500.0,0.00014257,2]
[422653597,1779210641000,-500.0,0.00014257,2]
[422653594,1779210641000,-500.0,0.00014257,2]
[422653596,1779210641000,-500.0,0.00014257,2]
[422653591,1779210641000,-500.0,0.00014257,2]
[422653592,1779210641000,-500.0,0.00014257,2]
[422653590,1779210641000,-500.0,0.00014257,2]
[422653593,1779210641000,-500.0,0.00014257,2]
[422653589,1779210641000,-500.0,0.00014257,2]
[422653595,1779210641000,-500.0,0.00014257,2]
[422653601,1779210641000,-500.0,0.00014257,2]
[422653673,1779210642000,-150.0,0.00014366,2]
[422653676,1779210642000,-166.66,0.00014384,2]
[422653677,1779210642000,-150.0,0.00014418,2]
[422653675,1779210642000,-350.0,0.00014373,2]
[422653685,1779210642000,-150.0,0.00014487,2]
[422653668,1779210642000,-150.74815113,0.00014257,2]
[422653667,1779210642000,-500.62055786,0.00014257,2]
[422653666,1779210642000,-150.0,0.00014257,2]
[422653665,1779210642000,-500.0,0.00014257,2]
[422653669,1779210642000,-150.0,0.00014263,2]
[422653672,1779210642000,-168.98,0.00014341,2]
[422653674,1779210642000,-6533.128208,0.00014371,2]
[422653695,1779210642000,-350.0,0.00014691,2]
[422653681,1779210642000,-500.0,0.00014452,2]
[422653680,1779210642000,-500.0,0.00014452,2]
[422653683,1779210642000,-500.0,0.00014452,2]
[422653679,1779210642000,-150.0,0.00014441,2]
[422653684,1779210642000,-150.0,0.0001447,2]
[422653682,1779210642000,-500.0,0.00014452,2]
[422653686,1779210642000,-150.0,0.00014487,2]
[422653688,1779210642000,-150.0,0.00014521,2]
[422653687,1779210642000,-150.0,0.00014487,2]
[422653690,1779210642000,-150.0,0.00014578,2]
[422653694,1779210642000,-150.0,0.00014676,2]
[422653696,1779210642000,-500.0,0.00014696,2]
[422653693,1779210642000,-6533.128208,0.00014636,2]
[422653670,1779210642000,-150.0,0.00014305,2]
[422653678,1779210642000,-500.0,0.00014422,2]
[422653671,1779210642000,-150.0,0.00014315,2]
[422653649,1779210642000,-500.0,0.00014257,2]
[422653663,1779210642000,-500.0,0.00014257,2]
[422653689,1779210642000,-150.0,0.00014573,2]
[422653634,1779210642000,-500.0,0.00014257,2]
[422653644,1779210642000,-500.0,0.00014257,2]
[422653635,1779210642000,-337.11697857,0.00014257,2]
[422653638,1779210642000,-500.0,0.00014257,2]
[422653637,1779210642000,-500.0,0.00014257,2]
[422653639,1779210642000,-500.0,0.00014257,2]
[422653641,1779210642000,-500.0,0.00014257,2]
[422653640,1779210642000,-500.0,0.00014257,2]
[422653636,1779210642000,-500.0,0.00014257,2]
[422653642,1779210642000,-506.44330256,0.00014257,2]
[422653643,1779210642000,-515.72234033,0.00014257,2]
[422653646,1779210642000,-500.0,0.00014257,2]
[422653662,1779210642000,-177.01992321,0.00014257,2]
[422653645,1779210642000,-500.0,0.00014257,2]
[422653647,1779210642000,-500.0,0.00014257,2]
[422653650,1779210642000,-500.0,0.00014257,2]
[422653657,1779210642000,-535.59562921,0.00014257,2]
[422653653,1779210642000,-500.0,0.00014257,2]
[422653655,1779210642000,-500.0,0.00014257,2]
[422653652,1779210642000,-500.0,0.00014257,2]
[422653656,1779210642000,-441.19250183,0.00014257,2]
[422653654,1779210642000,-500.0,0.00014257,2]
[422653658,1779210642000,-500.0,0.00014257,2]
[422653659,1779210642000,-500.0,0.00014257,2]
[422653660,1779210642000,-500.0,0.00014257,2]
[422653664,1779210642000,-557.62726141,0.00014257,2]
[422653661,1779210642000,-346.94706668,0.00014257,2]
[422653648,1779210642000,-392.34532667,0.00014257,2]
[422653691,1779210642000,-150.0,0.00014612,2]
[422653651,1779210642000,-500.0,0.00014257,2]
[422653698,1779210642000,-165.64,0.00014714,2]
[422653753,1779210642000,-417.0,0.00014858,2]
[422653750,1779210642000,-150.0,0.0001485,2]
[422653755,1779210642000,-417.0,0.00014861,2]
[422653768,1779210642000,-417.0,0.00014886,2]
[422653757,1779210642000,-417.0,0.00014866,2]
[422653763,1779210642000,-417.0,0.0001488,2]
[422653764,1779210642000,-417.0,0.00014881,2]
[422653771,1779210642000,-417.0,0.00014897,2]
[422653761,1779210642000,-417.0,0.00014874,2]
[422653767,1779210642000,-150.0,0.00014883,2]
[422653759,1779210642000,-417.0,0.00014873,2]
[422653774,1779210642000,-1254.07364838,0.000149,2]
[422653770,1779210642000,-417.0,0.00014894,2]
[422653740,1779210642000,-150.0,0.00014831,2]
[422653780,1779210642000,-1297.76263998,0.000149,2]
[422653783,1779210642000,-417.0,0.00014904,2]
[422653795,1779210642000,-625.64,0.0001492,2]
[422653794,1779210642000,-541.82,0.0001492,2]
[422653793,1779210642000,-541.66,0.0001492,2]
[422653782,1779210642000,-162.87295535,0.000149,2]
[422653788,1779210642000,-541.66,0.0001492,2]
[422653786,1779210642000,-500.0,0.0001492,2]
[422653784,1779210642000,-290.93114458,0.00014908,2]
[422653785,1779210642000,-385.095419,0.00014915,2]
[422653787,1779210642000,-508.68888162,0.0001492,2]
[422653792,1779210642000,-541.66,0.0001492,2]
[422653791,1779210642000,-541.66,0.0001492,2]
[422653692,1779210642000,-150.0,0.00014625,2]
[422653781,1779210642000,-730.84303976,0.000149,2]
[422653748,1779210642000,-21091.19165994,0.0001485,2]
[422653778,1779210642000,-6533.128208,0.000149,2]
[422653738,1779210642000,-417.0,0.00014824,2]
[422653697,1779210642000,-150.0,0.00014714,2]
[422653742,1779210642000,-417.0,0.00014835,2]
[422653701,1779210642000,-417.0,0.00014728,2]
[422653699,1779210642000,-417.0,0.00014725,2]
[422653703,1779210642000,-1009.15,0.00014749,2]
[422653700,1779210642000,-150.0,0.00014728,2]
[422653706,1779210642000,-394.111109,0.00014767,2]
[422653702,1779210642000,-150.0,0.00014737,2]
[422653704,1779210642000,-417.0,0.00014758,2]
[422653707,1779210642000,-417.0,0.00014769,2]
[422653708,1779210642000,-417.0,0.00014773,2]
[422653709,1779210642000,-417.0,0.00014777,2]
[422653711,1779210642000,-417.0,0.00014781,2]
[422653710,1779210642000,-150.0,0.0001478,2]
[422653705,1779210642000,-417.0,0.00014763,2]
[422653729,1779210642000,-417.0,0.00014812,2]
[422653725,1779210642000,-417.0,0.00014803,2]
[422653719,1779210642000,-3674.262,0.00014799,2]
[422653715,1779210642000,-417.0,0.00014789,2]
[422653727,1779210642000,-214.0,0.00014811,2]
[422653718,1779210642000,-1692026.6618102,0.00014798,2]
[422653713,1779210642000,-417.0,0.00014788,2]
[422653723,1779210642000,-321.0,0.000148,2]
[422653744,1779210642000,-417.0,0.00014838,2]
[422653731,1779210642000,-417.0,0.00014813,2]
[422653733,1779210642000,-417.0,0.00014815,2]
[422653746,1779210642000,-163.261942,0.00014841,2]
[422653722,1779210642000,-193.909,0.00014799,2]
[422653736,1779210642000,-417.0,0.00014815,2]
[422653814,1779210643000,-153.99235667,0.00014986,2]
[422653812,1779210643000,-284.58525916,0.00014986,2]
[422653822,1779210643000,-417.0,0.00014995,2]
[422653815,1779210643000,-220.99048533,0.00014986,2]
[422653820,1779210643000,-417.0,0.0001499,2]
[422653816,1779210643000,-254.67783396,0.00014986,2]
[422653825,1779210643000,-70718.5825713,0.00014997,2]
[422653817,1779210643000,-152.10400648,0.00014986,2]
[422653821,1779210643000,-614.22050023,0.0001499,2]
[422653829,1779210643000,-300.0,0.00014999,2]
[422653824,1779210643000,-34080.4966685,0.00014997,2]
[422653811,1779210643000,-500.0,0.0001497,2]
[422653819,1779210643000,-170.41262241,0.00014986,2]
[422653809,1779210643000,-417.0,0.00014958,2]
[422653798,1779210643000,-625.64,0.0001492,2]
[422653810,1779210643000,-417.0,0.00014965,2]
[422653808,1779210643000,-417.0,0.00014951,2]
[422653806,1779210643000,-150.0,0.00014935,2]
[422653807,1779210643000,-417.0,0.00014944,2]
[422653805,1779210643000,-417.0,0.00014921,2]
[422653804,1779210643000,-1355.39,0.0001492,2]
[422653802,1779210643000,-1355.23,0.0001492,2]
[422653803,1779210643000,-1355.23,0.0001492,2]
[422653801,1779210643000,-1355.23,0.0001492,2]
[422653799,1779210643000,-625.75,0.0001492,2]
[422653800,1779210643000,-1355.23,0.0001492,2]
[422653797,1779210643000,-625.64,0.0001492,2]
[422653796,1779210643000,-625.64,0.0001492,2]
[422653823,1779210643000,-151.0,0.00014997,2]
[422653813,1779210643000,-152.75252403,0.00014986,2]
[422653827,1779210643000,-20548.7698187,0.00014997,2]
[422653818,1779210643000,-225.67224447,0.00014986,2]
[422653828,1779210643000,-417.0,0.00014998,2]
[422653861,1779210643000,-1866.12225317,0.00015,2]
[422653860,1779210643000,-420.24775119,0.00015,2]
[422653858,1779210643000,-6320.0,0.00015,2]
[422653859,1779210643000,-297.47656531,0.00015,2]
[422653857,1779210643000,-2757.55524536,0.00015,2]
[422653856,1779210643000,-53295.51097017,0.00015,2]
[422653855,1779210643000,-78999.99999999,0.00015,2]
[422653853,1779210643000,-14993.63595843,0.00015,2]
[422653850,1779210643000,-5865.75645904,0.000107,2]
[422653849,1779210643000,-1279.97805821,0.000107,2]
[422653852,1779210643000,-2262965.49020297,0.00015,2]
[422653851,1779210643000,-166.22900262,0.000107,2]
[422653846,1779210643000,-817.08768054,0.000107,2]
[422653847,1779210643000,-384.81,0.000107,2]
[422653844,1779210643000,-575.87680691,0.00015,2]
[422653848,1779210643000,-316.812,0.000107,2]
[422653834,1779210643000,-300.0,0.00014999,2]
[422653830,1779210643000,-248.58448134,0.00014999,2]
[422653831,1779210643000,-300.0,0.00014999,2]
[422653833,1779210643000,-300.0,0.00014999,2]
[422653845,1779210643000,-3643.70869448,0.00015,2]
[422653838,1779210643000,-2175923.74099791,0.00015,2]
[422653835,1779210643000,-666.0,0.00014999,2]
[422653839,1779210643000,-296.41,0.00015,2]
[422653832,1779210643000,-666.0,0.00014999,2]
[422653837,1779210643000,-666.0,0.00014999,2]
[422653840,1779210643000,-296.41,0.00015,2]
[422653841,1779210643000,-443.0,0.00015,2]
[422653836,1779210643000,-300.0,0.00014999,2]
[422653842,1779210643000,-200.0,0.00015,2]
[422653843,1779210643000,-4271039.58213561,0.00015,2]
[422653826,1779210643000,-46595.871362,0.00014997,2]
[422653865,1779210646000,-7928.41636287,0.00015,2]
[422653864,1779210646000,-667559.02431057,0.00015,2]
[422653863,1779210646000,-1798.4536,0.00015,2]
[422653862,1779210646000,-500.0,0.00012825,2]
[422653869,1779210817000,155.3,8.708e-05,2]
[422653868,1779210817000,155.3,7.022e-05,2]
[422653870,1779210957000,1190.0,0.00030136,120]
[422653871,1779211115000,200.0,0.00026594,120]
[422653872,1779211116000,279.0,0.00026594,120]
[422653873,1779211215000,19210.53,0.00030137,120]
[422653874,1779211277000,-155.3,0.00010395,2]
[422653875,1779211284000,169.35,9.183e-05,2]
[422653878,1779211574000,96.42920705,8.684e-05,2]
[422653879,1779211574000,71.49079295,8.684e-05,2]
[422653877,1779211574000,167.92,5.866e-05,2]
[422653881,1779211610000,-159.74116714,0.00011378,2]
[422653882,1779211631000,287.0,0.00030082,120]
[422653883,1779211741000,1000.0,0.00030136,120]
[422653884,1779211756000,-81.18802558,0.00011378,2]
[422653885,1779211756000,-716.27192162,0.00011477,2]
[422653940,1779211832000,-9999.99,0.00012209,2]
[422653924,1779211832000,-299.99,0.00012209,2]
[422653921,1779211832000,-3872.77,0.00012209,2]
[422653920,1779211832000,-39199.36812687,0.00012209,2]
[422653927,1779211832000,-499.99,0.00012209,2]
[422653922,1779211832000,-28099.88,0.00012209,2]
[422653923,1779211832000,-1488.18,0.00012209,2]
[422653918,1779211832000,-150.99,0.00012155,2]
[422653916,1779211832000,-7646.58,0.00012155,2]
[422653936,1779211832000,-3658.73,0.00012209,2]
[422653919,1779211832000,-28790.71,0.00012155,2]
[422653944,1779211832000,-2884.09,0.00012274,2]
[422653934,1779211832000,-520.56,0.00012209,2]
[422653942,1779211832000,-22668.90055876,0.00012212,2]
[422653932,1779211832000,-2130.85,0.00012209,2]
[422653946,1779211832000,-163.31,0.00012299,2]
[422653938,1779211832000,-3013.49,0.00012209,2]
[422653947,1779211832000,-175.61273857,0.00012308,2]
[422653950,1779211832000,-500.0,0.00012308,2]
[422653949,1779211832000,-500.0,0.00012308,2]
[422653962,1779211832000,-500.0,0.00012308,2]
[422653952,1779211832000,-500.0,0.00012308,2]
[422653926,1779211832000,-353.1,0.00012209,2]
[422653953,1779211832000,-500.0,0.00012308,2]
[422653951,1779211832000,-500.0,0.00012308,2]
[422653929,1779211832000,-9999.99,0.00012209,2]
[422653925,1779211832000,-1628.52,0.00012209,2]
[422653890,1779211832000,-300.0,0.00011478,2]
[422653914,1779211832000,-1578.99,0.00012155,2]
[422653956,1779211832000,-500.0,0.00012308,2]
[422653889,1779211832000,-584.0,0.00011478,2]
[422653891,1779211832000,-401.49221552,0.00011478,2]
[422653892,1779211832000,-798.50778448,0.00011478,2]
[422653893,1779211832000,-298.21,0.00011479,2]
[422653895,1779211832000,-998.93,0.00011479,2]
[422653897,1779211832000,-150.0,0.00011479,2]
[422653898,1779211832000,-2000.0,0.00011479,2]
[422653904,1779211832000,-11111.71,0.00011528,2]
[422653894,1779211832000,-163.31,0.00011479,2]
[422653896,1779211832000,-1000.0,0.00011479,2]
[422653900,1779211832000,-150.0,0.00011479,2]
[422653917,1779211832000,-9999.99,0.00012155,2]
[422653899,1779211832000,-200.0,0.00011479,2]
[422653902,1779211832000,-167.92,0.00011502,2]
[422653901,1779211832000,-2293.7,0.00011488,2]
[422653905,1779211832000,-4428.35,0.00011756,2]
[422653915,1779211832000,-9999.99,0.00012155,2]
[422653907,1779211832000,-53201.1,0.00012155,2]
[422653906,1779211832000,-2175.49,0.00012011,2]
[422653908,1779211832000,-280540.0,0.00012155,2]
[422653909,1779211832000,-29714.56,0.00012155,2]
[422653912,1779211832000,-999.99,0.00012155,2]
[422653911,1779211832000,-3742.99,0.00012155,2]
[422653913,1779211832000,-4999.99,0.00012155,2]
[422653910,1779211832000,-9999.99,0.00012155,2]
[422653903,1779211832000,-150.0,0.00011527,2]
[422653960,1779211832000,-500.0,0.00012308,2]
[422653965,1779211832000,-500.0,0.00012308,2]
[422653955,1779211832000,-500.0,0.00012308,2]
[422653998,1779211832000,-500.0,0.00012308,2]
[422653989,1779211832000,-363.89341932,0.00012308,2]
[422653991,1779211832000,-500.0,0.00012308,2]
[422653993,1779211832000,-500.0,0.00012308,2]
[422653997,1779211832000,-500.0,0.00012308,2]
[422653992,1779211832000,-500.0,0.00012308,2]
[422653995,1779211832000,-500.0,0.00012308,2]
[422653994,1779211832000,-500.0,0.00012308,2]
[422653996,1779211832000,-500.0,0.00012308,2]
[422653990,1779211832000,-500.0,0.00012308,2]
[422654000,1779211832000,-500.0,0.00012308,2]
[422654010,1779211832000,-4536.42169301,0.00012308,2]
[422653988,1779211832000,-500.0,0.00012308,2]
[422653999,1779211832000,-500.0,0.00012308,2]
[422654002,1779211832000,-500.0,0.00012308,2]
[422654004,1779211832000,-500.0,0.00012308,2]
[422654003,1779211832000,-500.0,0.00012308,2]
[422654007,1779211832000,-4536.42169301,0.00012308,2]
[422654005,1779211832000,-500.0,0.00012308,2]
[422654006,1779211832000,-613.75413033,0.00012308,2]
[422654009,1779211832000,-4536.42169301,0.00012308,2]
[422654008,1779211832000,-4536.42169301,0.00012308,2]
[422654012,1779211832000,-4536.42169301,0.00012308,2]
[422654014,1779211832000,-4536.42169301,0.00012308,2]
[422654011,1779211832000,-4536.42169301,0.00012308,2]
[422654013,1779211832000,-4536.42169301,0.00012308,2]
[422654001,1779211832000,-500.0,0.00012308,2]
[422653987,1779211832000,-500.0,0.00012308,2]
[422653958,1779211832000,-490.98294935,0.00012308,2]
[422653985,1779211832000,-500.0,0.00012308,2]
[422653986,1779211832000,-500.0,0.00012308,2]
[422653961,1779211832000,-500.0,0.00012308,2]
[422653959,1779211832000,-500.0,0.00012308,2]
[422653957,1779211832000,-207.8027751,0.00012308,2]
[422653964,1779211832000,-500.0,0.00012308,2]
[422653963,1779211832000,-500.0,0.00012308,2]
[422653974,1779211832000,-500.0,0.00012308,2]
[422653975,1779211832000,-500.0,0.00012308,2]
[422653966,1779211832000,-308.40036562,0.00012308,2]
[422653967,1779211832000,-500.0,0.00012308,2]
[422654015,1779211832000,-4536.42169301,0.00012308,2]